[Event "Romanian Rapid Open 2022"]
[Site "Sebes"]
[Date "2022.12.02"]
[Round "3.21"]
[White "Vrencian, Lehel"]
[Black "Vajda, Mihaly"]
[Result "1-0"]
[ECO "C41"]
[WhiteElo "2226"]
[BlackElo "1769"]
[Annotator "TA"]
[PlyCount "53"]
[EventDate "2022.12.02"]
[EventType "rapid"]
[EventCountry "ROU"]
[SourceTitle "playchess.com"]
[Source "ChessBase"]
[SourceQuality "1"]
[TimeControl "600+5"]

{[%evp 9,52,8,50,42,48,51,68,36,31,35,37,21,29,49,39,0,-15,0,33,0,99,102,205,204,250,240,390,382,448,395,787,785,1110,964,1237,1227,1207,1191,29980,662,29981,29982,29996,29997,29999]} 1. e4 {[%emt 0:00:03]} d6 {[%emt 0:00:01]} 2. d4 {[%emt 0:00:02]} Nf6 {[%emt 0:00:01]} 3. Nc3 {[%emt 0:00:03]} e5 {[%emt 0:00:02]} 4. Nf3 {[%emt 0:00:02]} Nbd7 {[%emt 0:00:03]} 5. Rg1 {[%emt 0:00:06]} exd4 {[%emt 0:00:15]} 6. Nxd4 {[%emt 0:00:01] C41: Philidor Defence.} g6 {[%emt 0:00:01]} 7. g4 {[%emt 0:00:04][%cal Bg2g4,Bg4g5][%mdl 32]} Nc5 {[%emt 0:00:59]} 8. Qe2 {[%emt 0:00:04] White is slightly better.} Bg7 {[%emt 0:00:49][%cal Of6g4]} 9. g5 {[%emt 0:00:19] [#]} Ng4 $146 {[%emt 0:00:31]} ({Predecessor:} 9... Nh5 10. Be3 O-O 11. O-O-O Ne6 12. Qd2 Nxd4 13. Bxd4 Be6 14. Bxg7 Nxg7 15. f4 f5 16. gxf6 Qxf6 {½-½ (61) Roehr,O (2072)-Strache,M (2302) Berlin 2022}) 10. Nb3 {[%emt 0:02:34]} (10. e5 $5 {[%cal Re5d6]} Nxh2 11. Bf4 (11. exd6+ Ne6 $14) 11... Nxf1 12. exd6+ Ne6 13. Nxe6 Bxe6 14. O-O-O (14. Kxf1 Bxc3 15. bxc3 cxd6 $17) (14. dxc7 Qd4 $11) 14... cxd6 15. Bxd6 $14) 10... Nxh2 {[%emt 0:01:24]} (10... Nxb3 {simplifies} 11. axb3 Nxh2 12. Bg2 c6) 11. Bg2 {[%emt 0:00:01] Threatens to win with Nxc5.} Ng4 {[%emt 0:00:37]} 12. Nxc5 {[%emt 0:00:37]} ({Better is} 12. Bd2 $14) 12... dxc5 $11 {[%emt 0:00:10]} 13. f3 {[%emt 0:03:50]} Bd4 {[%emt 0:00:24]} 14. Rf1 {[%emt 0:00:11][%mdl 1024] Prevents Bf2+. White has compensation.} (14. Rh1 $5 {[%cal Rf3g4]} Bxc3+ 15. bxc3 $14) 14... Ne5 {[%emt 0:00:49] [#]} (14... Bxc3+ $1 $11 15. bxc3 Ne5) 15. Nd5 $1 $16 {[%emt 0:00:11] Strongly threatening c3.} Nc6 {[%emt 0:00:25]} (15... c6 $16) 16. c3 $18 {[%emt 0:00:53]} Bg7 {[%emt 0:00:33]} 17. Bf4 {[%emt 0:00:02]} Be5 {[%emt 0:01:31]} (17... O-O {was necessary.} 18. O-O-O (18. Nxc7 Ne5 $16) 18... Be6 19. Nxc7 Qe7) 18. Bxe5 {[%emt 0:00:28]} Nxe5 {[%emt 0:00:03]} 19. O-O-O {[%emt 0:00:11] Nf6+ is the strong threat.} Bd7 $2 {[%emt 0:00:52]} (19... Qxg5+ 20. f4 Qd8 21. fxe5 Qg5+ 22. Kb1 O-O 23. Nxc7 Rb8) 20. Nf6+ {[%emt 0:00:11]} Ke7 {[%emt 0:00:37]} 21. Rd5 {[%emt 0:00:35]} c6 {[%emt 0:01:01]} 22. Rxe5+ {[%emt 0:00:12]} Be6 {[%emt 0:00:00]} 23. Rd1 {[%emt 0:00:33]} Qa5 {[%emt 0:00:10]} 24. Rd7+ {[%emt 0:00:32]} Kf8 {[%emt 0:00:01] [#]} 25. Rxe6 {[%emt 0:00:01] White mates.} fxe6 {[%emt 0:00:26]} (25... Qxa2 26. Ree7) 26. Qd2 {[%emt 0:00:01][%cal Rd2d6]} ({Weaker is} 26. Rxh7 Rxh7 27. Nxh7+ Ke7 $18) 26... c4 {[%emt 0:00:21]} 27. Qd6# {[%emt 0:00:03] Weighted Error Value: White=0.08 (flawless) /Black=0.71} 1-0

[Event "Romanian Rapid Open 2022"]
[Site "Sebes"]
[Date "2022.12.02"]
[Round "3.22"]
[White "Dragomirescu, Calin"]
[Black "Sandru, Nicolae"]
[Result "1-0"]
[ECO "E09"]
[WhiteElo "1971"]
[BlackElo "1647"]
[Annotator "TA"]
[PlyCount "81"]
[EventDate "2022.12.02"]
[EventType "rapid"]
[EventCountry "ROU"]
[SourceTitle "playchess.com"]
[Source "ChessBase"]
[SourceQuality "1"]
[TimeControl "600+5"]

{[%evp 22,81,71,84,92,75,95,95,106,83,100,100,107,107,113,93,92,83,127,115,122,31,60,41,47,49,26,-11,7,-31,-22,-31,-26,-67,-8,-31,0,0,21,29,86,69,82,0,0,0,52,52,52,43,52,52,975,933,1279,1581,1475,1472,29978,29979,29985,29986]} 1. d4 {[%emt 0:00:03]} d5 {[%emt 0:05:30]} 2. c4 {[%emt 0:00:19]} e6 {[%emt 0:00:02]} 3. Nf3 {[%emt 0:00:01]} Nf6 {[%emt 0:00:01]} 4. g3 {[%emt 0:00:02]} Be7 {[%emt 0:00:01]} 5. Bg2 {[%emt 0:00:01]} O-O {[%emt 0:00:02]} 6. O-O {[%emt 0:00:02]} c6 {[%emt 0:00:01]} 7. Qc2 {[%emt 0:00:02]} Nbd7 {[%emt 0:00:04]} 8. Nbd2 {[%emt 0:00:01]} Re8 {[%emt 0:00:02]} 9. e4 {[%emt 0:00:02]} Nxe4 {[%emt 0:00:02]} 10. Nxe4 {[%emt 0:00:02]} dxe4 {[%emt 0:00:01]} 11. Qxe4 {[%emt 0:00:02]} Nf6 {[%emt 0:00:01]} 12. Qc2 {[%emt 0:00:02]} Bd6 {[%emt 0:00:15] E09: Closed Catalan: Main Line: 7 Qc2 c6 8 Nbd2.} 13. Rd1 {[%emt 0:00:23] [#]} Bf8 $146 {[%emt 0:00:14]} ({Predecessor:} 13... h6 14. h3 Qe7 15. c5 Bc7 16. Re1 Rd8 17. a4 Bd7 18. Ra3 Be8 19. a5 Nd5 {1-0 (56) Cederstam Barsk,C (2368)-Larsson,A (2203) Sweden 2022}) 14. Bf4 {[%emt 0:00:14]} g6 {[%emt 0:00:02] White is better.} 15. h4 {[%emt 0:00:15]} Bg7 {[%emt 0:00:01]} 16. Be5 {[%emt 0:00:04]} Nh5 {[%emt 0:00:12]} 17. Bxg7 {[%emt 0:00:04]} Nxg7 {[%emt 0:00:01]} 18. c5 {[%emt 0:00:13]} Nf5 {[%emt 0:00:13]} 19. Qc3 {[%emt 0:00:16]} Qf6 {[%emt 0:00:02]} 20. Ne5 {[%emt 0:00:15]} Qg7 {[%emt 0:00:17]} 21. Nxc6 {[%emt 0:00:23] White is much more active. The black rooks are badly placed.} bxc6 $14 {[%emt 0:00:08]} 22. Bxc6 {[%emt 0:09:09]} Ba6 $1 {[%cal Of5e7,Bc8a6,Ba6b7,Bb7d5][%mdl 32]} 23. Bxa8 {[%emt 0:00:00]} Rxa8 {[%emt 0:00:03]} 24. b4 {[%emt 0:00:00]} Ne7 {[%emt 0:00:10][%mdl 1024] Black has compensation.} (24... Rc8 {is more complex.} 25. c6 Bb5 26. Qc5 Be2) 25. a4 {[%emt 0:00:00] b5 is the strong threat.} (25. c6 {seems wilder.} Qf6 26. a4 Be2 27. Re1) 25... Bb7 $1 {[%emt 0:00:03]} 26. b5 {[%emt 0:00:00] [#] Threatens to win with c6.} Bd5 {[%emt 0:00:02]} ({But not} 26... Nd5 27. Qa3 $16) 27. c6 {[%emt 0:00:00]} Qf6 {[%emt 0:00:07]} (27... g5 $15 28. h5 Qf6) 28. Qd3 {[%emt 0:00:00]} Nf5 {[%emt 0:00:21]} (28... g5 $5 {[%cal Rg5h4]}) 29. Rac1 {[%emt 0:00:00]} Nd6 {[%emt 0:00:34]} 30. Re1 {[%emt 0:00:00]} Rc8 {[%emt 0:00:34]} (30... Qf5 $11 {remains equal.} 31. Qxf5 Nxf5) 31. Re5 {[%emt 0:00:00]} Nf5 {[%emt 0:00:22]} 32. Rce1 {[%emt 0:00:00]} (32. Rc5 $16) 32... Nd6 {[%emt 0:00:05]} (32... Qd8 $11) 33. Rc1 {[%emt 0:00:00]} Nf5 $1 {[%emt 0:00:02]} 34. a5 {[%emt 0:00:00]} Qd8 {[%emt 0:00:20]} 35. Qc3 {[%emt 0:00:00]} Qc7 {[%emt 0:00:44]} 36. Qb4 {[%emt 0:00:00] Black must now prevent b6. Really sharp!} f6 $2 {[%emt 0:00:11][%mdl 8192] Black cannot hold the game after this.} (36... Ne7 $14) 37. b6 {[%emt 0:00:00]} Qb8 {[%emt 0:00:11] [#]} 38. Rxd5 $1 {[%emt 0:00:00][%mdl 512]} exd5 {[%emt 0:00:24]} (38... axb6 39. Rxf5) 39. Qc5 {[%emt 0:00:00][%csl LRa7,LRd5]} Nxg3 {[%emt 0:00:11]} 40. Qxd5+ {[%emt 0:00:00]} Kh8 {[%emt 0:00:10]} 41. c7 {[%emt 0:00:00] Weighted Error Value: White=0.18 (very precise) /Black=0.31} (41. fxg3 $2 {perishes.} Qxg3+ 42. Kh1 Qh3+ 43. Kg1 Qe3+ 44. Kg2 Qd2+ 45. Kh3 Qxc1 $19) 1-0

[Event "Romanian Rapid Open 2022"]
[Site "Sebes"]
[Date "2022.12.02"]
[Round "3.23"]
[White "Tampea, Radu"]
[Black "Tariceanu, Victor"]
[Result "1/2-1/2"]
[ECO "D02"]
[WhiteElo "2110"]
[BlackElo "1720"]
[Annotator "TA"]
[PlyCount "188"]
[EventDate "2022.12.02"]
[EventType "rapid"]
[EventCountry "ROU"]
[SourceTitle "playchess.com"]
[Source "ChessBase"]
[SourceQuality "1"]
[TimeControl "600+5"]

{[%evp 12,188,0,0,16,0,17,11,32,0,0,2,0,0,0,-6,0,-16,25,18,34,31,29,29,29,33,56,50,34,58,56,58,62,10,10,10,8,7,0,0,7,0,7,8,8,8,10,13,8,7,33,7,8,9,49,0,1,2,5,12,14,0,14,8,7,0,0,0,0,0,0,0,0,0,0,0,0,0,0,0,0,0,0,0,0,0,0,0,0,0,0,0,0,0,0,0,0,0,0,0,0,0,0,0,0,0,0,0,0,0,0,0,0,0,0,0,0,0,0,0,0,0,0,0,0,0,0,0,0,0,0,0,0,0,0,0,0,0,0,0,0,0,0,0,0,0,0,0,0,0,29970,29971,29971,29972,29971,29965,29982,29983,29962,0,0,0,0,0,0,0,0,0,0,-29987,0,-29981,0,0,0,0,0,0,0]} 1. d4 {[%emt 0:00:01]} Nf6 {[%emt 0:00:03]} 2. Bf4 {[%emt 0:00:02]} e6 {[%emt 0:00:02]} 3. e3 {[%emt 0:00:01]} d5 {[%emt 0:00:02]} 4. Nf3 {[%emt 0:00:01]} c5 {[%emt 0:00:01]} 5. c3 {[%emt 0:00:01]} Nc6 {[%emt 0:00:01]} 6. Nbd2 {[%emt 0:00:02]} Bd6 {[%emt 0:00:06] 6...cxd4 is the hot move.} 7. Bg3 {[%emt 0:00:01]} Bxg3 {[%emt 0:00:22] D02: 1 d4 d5 2 Nf3 sidelines, including 2...Nf6 3 g3 and 2...Nf6 3 Bf4.} 8. hxg3 {[%emt 0:00:01]} Qb6 {[%emt 0:00:01]} 9. Qc2 {[%emt 0:00:15]} Bd7 {[%emt 0:00:11] [#]} 10. a3 $146 {[%emt 0:00:08]} ({Predecessor:} 10. Ne5 Rc8 11. Qb3 Nxe5 12. dxe5 Ng4 13. Nf3 h5 14. Be2 g6 15. c4 dxc4 16. Bxc4 {0-1 (34) Silva,D (2246)-Mulenga,P (2279) Hammamet 2019}) 10... Rc8 {[%emt 0:00:04]} 11. Bd3 {[%emt 0:00:03]} h6 {[%emt 0:00:06]} 12. O-O {[%emt 0:00:38]} O-O {[%emt 0:00:27]} 13. Rab1 {[%emt 0:00:08]} a6 {[%emt 0:00:16]} 14. Qd1 {[%emt 0:00:03]} c4 {[%emt 0:00:09]} 15. Bc2 {[%emt 0:00:01]} Qc7 {[%emt 0:00:08]} 16. e4 {[%emt 0:00:01]} dxe4 {[%emt 0:00:30]} 17. Nxe4 {[%emt 0:00:02]} Nxe4 {[%emt 0:00:03]} 18. Bxe4 {[%emt 0:00:01]} Qd6 {[%emt 0:00:04]} 19. Qe2 {[%emt 0:00:03]} b5 {[%emt 0:00:03]} 20. Bc2 {[%emt 0:00:05]} Ne7 {[%emt 0:00:10]} 21. Ne5 {[%emt 0:00:10]} Be8 {[%emt 0:00:30]} 22. g4 {[%emt 0:00:13]} ({White should try} 22. Qe4 $14 f5 23. Qe2) 22... f6 $11 {[%emt 0:00:09]} 23. Nf3 {[%emt 0:00:03]} Bg6 {[%emt 0:00:07]} 24. Rfe1 {[%emt 0:00:36]} Bxc2 25. Qxc2 {[%emt 0:00:01]} Nd5 {[%emt 0:00:05]} 26. Qe4 {[%emt 0:00:02]} Rce8 {[%emt 0:00:06]} 27. g3 {[%emt 0:00:23]} a5 {[%emt 0:00:43]} 28. Rbc1 {[%emt 0:00:13]} Qd7 {[%emt 0:00:31]} 29. Re2 {[%emt 0:00:30]} Re7 {[%emt 0:00:15]} 30. Nh4 {[%emt 0:00:09] And now Ng6 would win.} Rc8 {[%emt 0:00:16]} 31. Ng6 {[%emt 0:00:06]} (31. f4 $5 {[%cal Rg4g5]}) 31... Ree8 {[%emt 0:00:01]} 32. Nf4 {[%emt 0:00:21]} Nxf4 {[%emt 0:00:43]} 33. Qxf4 {[%emt 0:00:02]} (33. gxf4 $14 Kf7 34. f3) 33... Qd5 {[%emt 0:00:11]} 34. Rce1 {[%emt 0:00:07]} Kf7 {[%emt 0:00:04]} (34... b4 {simplifies} 35. axb4 axb4 36. Qe4 Kf7) 35. Re5 {[%emt 0:00:52]} (35. Qe4 {simplifies} b4 36. axb4 Qxe4 37. Rxe4 axb4 38. f4) 35... Qb7 {[%emt 0:00:35]} 36. R5e4 {[%emt 0:01:52]} (36. Qe4 {simplifies} Qxe4 37. R5xe4 Rb8 38. f4) 36... Qd5 {[%emt 0:00:39]} 37. R1e2 {[%emt 0:00:40]} (37. R4e3 {simplifies} Re7 38. Qe4 Qxe4 39. Rxe4 Rc6 40. f4) 37... Re7 {[%emt 0:00:42]} 38. Re5 {[%emt 0:00:10]} (38. Qe3 {simplifies} Rb8 39. f4 b4 40. axb4 axb4 41. f5) 38... Qb7 {[%emt 0:00:07] Threatens to win with ...g5.} 39. d5 {[%emt 0:00:01][%cal Re5e6]} Rce8 $1 {[%emt 0:00:06]} 40. dxe6+ {[%emt 0:04:59]} Rxe6 {[%emt 0:00:05]} 41. Rxe6 {[%emt 0:00:02]} Rxe6 {[%emt 0:00:01]} 42. Rxe6 {[%emt 0:00:01]} Kxe6 {[%emt 0:00:02][%mdl 4096] Endgame KQ-KQ} 43. Qf5+ {[%emt 0:00:00]} Kf7 {[%emt 0:00:10]} 44. Qc5 {[%emt 0:00:01][%cal Oa3a4]} Qd7 {[%emt 0:00:03] Against a4} 45. Qb6 {[%emt 0:00:08]} a4 {[%emt 0:00:16]} 46. Qc5 {[%emt 0:00:05]} g6 {[%emt 0:00:14][%cal Bg7g6,Bg6f5][%mdl 32]} 47. Kg2 {[%emt 0:00:06]} Ke6 {[%emt 0:00:06]} 48. Qe3+ {[%emt 0:00:05]} Kf7 {[%emt 0:00:03]} 49. Qe4 {[%emt 0:00:00]} f5 {[%emt 0:00:25]} 50. gxf5 {[%emt 0:00:00]} gxf5 {[%emt 0:00:01]} 51. Qf4 {[%emt 0:00:00]} Kg6 {[%emt 0:00:04]} 52. Qe5 {[%emt 0:00:03]} Qc6+ {[%emt 0:00:08]} 53. Kh2 {[%emt 0:00:03]} Qf3 {[%emt 0:00:14]} 54. Qe8+ {[%emt 0:00:10]} Kh7 {[%emt 0:00:07]} 55. Qf7+ {[%emt 0:00:02]} Kh8 {[%emt 0:00:02]} 56. Kg1 {[%emt 0:00:08] aiming for Qe8+.} Qe4 {[%emt 0:00:19] Prevents Qe8+.} 57. Qf6+ {[%emt 0:00:20]} Kh7 {[%emt 0:00:02]} 58. Qb6 {[%emt 0:00:01]} Qd5 {[%emt 0:00:06]} 59. Qe3 {[%emt 0:00:02]} Kg7 {[%emt 0:00:04]} 60. Kh2 {[%emt 0:00:01]} Kg6 {[%emt 0:00:13]} 61. Qf4 {[%emt 0:00:00]} Qc5 {[%emt 0:00:14]} 62. Kg2 {[%emt 0:00:18]} Qc6+ {[%emt 0:00:08]} 63. Qf3 {[%emt 0:00:01]} Qc5 {[%emt 0:00:13]} 64. Qb7 {[%emt 0:00:01]} Qe5 {[%emt 0:00:08]} 65. Qc6+ {[%emt 0:00:01]} Kg7 {[%emt 0:00:04]} 66. Kf3 {[%emt 0:00:06]} Kf7 {[%emt 0:00:20]} 67. Qb7+ {[%emt 0:00:34]} Kf6 {[%emt 0:00:10]} 68. Qb6+ {[%emt 0:00:01]} Kf7 {[%emt 0:00:04][%csl Gf5][%cal Re5e4]} 69. Qe3 {[%emt 0:00:01] Prevents Qe4+.} Qd5+ {[%emt 0:00:08]} 70. Kf4 {[%emt 0:00:11]} Kf6 {[%emt 0:00:26]} 71. Qb6+ {[%emt 0:00:05]} Kf7 {[%emt 0:00:05][%csl Gf5][%cal Rd5e4]} 72. Qc7+ {[%emt 0:00:05]} Kf6 {[%emt 0:00:08][%csl Gf5][%cal Rd5e4]} 73. Qb6+ {[%emt 0:00:01]} Kf7 {[%emt 0:00:01][%csl Gf5][%cal Rd5e4]} 74. Qe3 {[%emt 0:00:06] Against Qe4+. Active counter play!} Kf6 {[%emt 0:00:01]} 75. Qe8 {[%emt 0:00:01]} Qd2+ {[%emt 0:00:15]} 76. Qe3 {[%emt 0:00:02]} Qd6+ {[%emt 0:00:03]} 77. Kf3 {[%emt 0:00:01]} Qd5+ {[%emt 0:00:01]} 78. Ke2 {[%emt 0:00:01]} Kg7 {[%emt 0:00:35]} 79. Qd4+ {[%emt 0:00:25]} Qxd4 {[%emt 0:00:11]} 80. cxd4 {[%emt 0:00:01] KP-KP} b4 $2 {[%emt 0:00:21][%mdl 8192] [#]} (80... Kf7 $11) 81. axb4 {[%emt 0:00:02]} c3 {[%emt 0:00:01]} 82. Kd3 {[%emt 0:00:01]} (82. bxc3 $2 a3 83. d5 a2 $19) 82... cxb2 {[%emt 0:00:03]} 83. Kc2 {[%emt 0:00:00]} a3 {[%emt 0:00:03]} 84. b5 {[%emt 0:00:01]} Kf7 {[%emt 0:00:01]} 85. d5 $2 {[%emt 0:00:04]} (85. b6 Ke6 86. b7 Kd5 87. b8=Q Kxd4 88. Qd6+ Ke4 89. Qxa3 Kd5 90. Qe3) 85... Ke7 {[%emt 0:00:01]} 86. b6 {[%emt 0:00:01] Strongly threatening b7. Chess con chili.} Kd7 {[%emt 0:00:01]} 87. Kb1 {[%emt 0:00:08]} Kd6 {[%emt 0:00:20]} 88. Ka2 {[%emt 0:00:03]} Kd7 {[%emt 0:00:04]} 89. f3 {[%emt 0:00:09]} (89. Kxa3 b1=Q 90. f4 Qxb6 91. g4 Kd6 92. g5 Kxd5 93. Ka2 Kc4 94. Ka1 Kb3 95. gxh6 Qg1#) 89... h5 {[%emt 0:00:04][%cal Of5f4] ( -> ...f4!)} 90. Kb1 $2 {[%emt 0:00:03][%mdl 8192] [#] Against f4} (90. Kxa3 {gets mated.} b1=Q 91. g4 Kd6 92. b7 Kxd5 93. b8=Q Qxb8 94. gxf5 Kc4 95. Ka2 Kc3 96. f6 Qb2#) (90. f4 $11) 90... Kd6 $2 {[%emt 0:00:01]} (90... f4 91. gxf4 h4 92. Kc2 h3 93. b7 Kc7 94. b8=R Kxb8 95. d6 h2 96. Kd2 b1=Q 97. d7 Kc7 98. Kc3 h1=Q 99. d8=B+ Kxd8 100. f5 Qxf3+ 101. Kd4 Qfe4+ 102. Kc5 Qbb4#) 91. Kc2 $2 {[%emt 0:00:00][%mdl 8192]} (91. f4 $11) 91... Kd7 $2 {[%emt 0:00:06]} (91... Kxd5 92. b7 Kd4 93. b8=Q $18 (93. b8=B Ke3 $11)) (91... f4 {mates} 92. gxf4 h4 93. b7 Kc7 94. f5 h3 95. f6 h2 96. b8=R Kxb8 97. f7 b1=Q+ 98. Kxb1 h1=Q+ 99. Ka2 Qxf3 100. d6 Kb7 101. f8=B Qxf8 102. Kxa3 Qxd6+ 103. Kb2 Qd2+ 104. Kb3 Kb6 105. Kc4 Kc6 106. Kb3 Kb5 107. Ka3 Kc4 108. Ka4 Qb4#) 92. f4 {[%emt 0:00:06] The position is equal.} (92. Kb1 f4 93. g4 hxg4 94. Kc2 gxf3 95. b7 Kc7 96. d6+ Kxb7 97. d7 Kc7 98. Kd3 b1=Q+ 99. Kc4 f2 100. Kd5 Kxd7 101. Ke5 f1=Q 102. Kf6 Qg2 103. Ke5 Qge4+ 104. Kf6 Qe7#) 92... Kd6 {[%emt 0:00:03]} 93. Kb1 $1 {[%emt 0:00:04]} Kd7 $1 {[%emt 0:00:01]} 94. Ka2 {[%emt 0:00:01]} (94. Kc2 $5) 94... Kd6 $1 {[%emt 0:00:01] Never resign too early!   Weighted Error Value: White=0.06 (flawless) /Black=0.05 (flawless)} 1/2-1/2

[Event "Romanian Rapid Open 2022"]
[Site "Sebes"]
[Date "2022.12.02"]
[Round "3.24"]
[White "Dima, Ioan-Radu"]
[Black "Cordea, David"]
[Result "0-1"]
[ECO "A44"]
[WhiteElo "1819"]
[BlackElo "2049"]
[Annotator "TA"]
[PlyCount "62"]
[EventDate "2022.12.02"]
[EventType "rapid"]
[EventCountry "ROU"]
[SourceTitle "playchess.com"]
[Source "ChessBase"]
[SourceQuality "1"]
[TimeControl "600+5"]

{[%evp 9,62,73,100,80,77,81,94,66,79,71,76,59,93,53,73,64,67,39,39,-46,23,14,0,-82,-86,-90,-63,-89,-81,-257,-252,-272,-272,-227,-184,-167,-135,-130,-125,-330,-339,-492,-509,-479,-483,-427,-131,-248,-147,-102,-139,-316,-308,-1287,-1255]} 1. d4 {[%emt 0:00:03]} c5 {[%emt 0:00:10]} 2. d5 {[%emt 0:00:01]} e5 {[%emt 0:00:01]} 3. e4 {[%emt 0:00:02]} d6 {[%emt 0:00:03]} 4. Nc3 {[%emt 0:00:08]} g6 {[%emt 0:00:03]} 5. Nf3 {[%emt 0:00:07]} Bg7 {[%emt 0:00:01]} 6. Bb5+ {[%emt 0:00:06] A44: Semi-Benoni.} Nd7 {[%emt 0:00:19]} 7. a4 {[%emt 0:00:03]} Ne7 {[%emt 0:00:10]} 8. O-O {[%emt 0:00:04] White is better.} O-O {[%emt 0:00:02]} 9. Nd2 {[%emt 0:01:43]} f5 {[%emt 0:00:07]} 10. f3 {[%emt 0:00:02] [#]} Rf7 $146 {[%emt 0:00:17]} ({Predecessor:} 10... Nf6 11. Be2 Bd7 12. Nc4 Nc8 13. exf5 gxf5 14. f4 e4 15. h3 Kh8 16. Qe1 Qe7 {1-0 (43) Polyakov,M (2281)-Kosikov,A (2156) Kharkov 2006}) 11. Re1 {[%emt 0:01:06]} Bh6 {[%emt 0:01:27]} 12. Bf1 {[%emt 0:00:14]} Nf6 {[%emt 0:00:21]} 13. b3 {[%emt 0:01:13]} (13. Nc4 $5 {[%cal Rc1h6]} Bxc1 14. Rxc1 $14 (14. Qxc1 fxe4 15. fxe4 a6 $14)) 13... Rg7 {[%emt 0:01:25]} 14. Ba3 {[%emt 0:00:10]} ({White should play} 14. Kh1 $14) 14... Bxd2 {[%emt 0:00:09]} (14... g5 $1 $15) 15. Qxd2 $11 {[%emt 0:00:02]} f4 {[%emt 0:00:32]} 16. Nd1 {[%emt 0:01:16]} (16. Kh1 $11) 16... g5 $17 {[%emt 0:00:16]} 17. b4 {[%emt 0:00:08]} b6 {[%emt 0:00:02]} 18. bxc5 {[%emt 0:02:08]} bxc5 {[%emt 0:00:03]} 19. Nb2 $2 {[%emt 0:00:02]} (19. Bc1 $17 {was called for.}) 19... g4 $19 {[%emt 0:00:08]} 20. fxg4 {[%emt 0:00:34]} Nxg4 {[%emt 0:00:02] And now ...Ng6 would win.} 21. Nc4 {[%emt 0:00:15]} Ba6 {[%emt 0:01:37]} 22. h3 {[%emt 0:02:16]} ({Don't blunder} 22. Nxe5 $2 Nxe5 23. Qxf4 Qa5 $19) 22... Bxc4 {[%emt 0:00:08]} 23. Bxc4 {[%emt 0:00:01]} Ne3 {[%emt 0:00:03]} 24. Bf1 {[%emt 0:00:04]} (24. Rxe3 $17 {only move.} fxe3 25. Qxe3) 24... Ng6 {[%emt 0:00:03]} 25. Rab1 {[%emt 0:00:12]} (25. Rxe3 $142 fxe3 26. Qxe3) 25... Nh4 {[%emt 0:00:14] [#] Strongly threatening ...Nf3+.} 26. Rxe3 {[%emt 0:00:07]} fxe3 {[%emt 0:00:10]} 27. Qxe3 {[%emt 0:00:02]} Ng6 $2 {[%emt 0:00:14]} (27... Qf6 $19 {White must now prevent ...Rf8.} 28. Kh1 Rf8) 28. Kh2 {[%emt 0:00:08] [#]} (28. Qe1 $17) 28... Rb8 {[%emt 0:00:24]} ({Black should try} 28... Qf6 $1 $19 {aiming for ...Nh4.} 29. g3 Rf8) 29. Rxb8 $17 {[%emt 0:00:06]} Qxb8 {[%emt 0:00:01]} 30. Qg5 $2 {[%emt 0:00:03]} (30. Bc1 $17 {was worth a try.}) 30... Qf8 $19 {[%emt 0:00:15]} ({Worse is} 30... Nf4 31. Qf6 $19) 31. Bc4 {[%emt 0:00:08]} (31. Kg1 Rb7 32. Bc1) 31... Nf4 {[%emt 0:00:03] Weighted Error Value: White=0.82/Black=0.30} 0-1

[Event "Romanian Rapid Open 2022"]
[Site "Sebes"]
[Date "2022.12.02"]
[Round "3.25"]
[White "Oltean, Cristian-Daniel"]
[Black "Pop, Ioan I."]
[Result "1-0"]
[ECO "C00"]
[WhiteElo "1896"]
[BlackElo "1540"]
[Annotator "NA RC COMBH"]
[PlyCount "85"]
[EventDate "2022.12.02"]
[EventType "rapid"]
[EventCountry "ROU"]
[SourceTitle "playchess.com"]
[Source "ChessBase"]
[SourceQuality "1"]
[TimeControl "600+5"]

1. e4 {[%emt 0:00:02]} e6 {[%emt 0:00:03]} 2. d3 {[%emt 0:00:01]} d5 {[%emt 0:00:07]} 3. Nd2 {[%emt 0:00:03]} dxe4 {[%emt 0:00:06]} 4. dxe4 {[%emt 0:00:01]} Bb4 {[%emt 0:00:10]} 5. c3 {[%emt 0:00:03]} Be7 {[%emt 0:00:07]} 6. Ngf3 {[%emt 0:00:11]} Nc6 {[%emt 0:00:04]} 7. Bb5 {[%emt 0:00:03]} Bd7 {[%emt 0:00:15]} 8. O-O {[%emt 0:00:03]} Na5 {[%emt 0:00:12]} 9. Bd3 {[%emt 0:00:11]} c5 {[%emt 0:00:26]} 10. e5 {[%emt 0:00:10]} Qc7 {[%emt 0:00:38]} 11. Ne4 {[%emt 0:00:04]} O-O-O {[%emt 0:00:14]} 12. Qe2 {[%emt 0:00:09]} c4 {[%emt 0:00:19]} 13. Bc2 {[%emt 0:00:02]} h6 {[%emt 0:00:11]} 14. b4 {[%emt 0:00:43]} Nc6 {[%emt 0:00:16]} 15. Qxc4 {[%emt 0:00:04]} f5 {[%emt 0:00:13]} 16. Nc5 {[%emt 0:00:50]} Nb8 {[%emt 0:00:39]} 17. Bb3 {[%emt 0:00:26]} Bxc5 {[%emt 0:00:54]} 18. bxc5 {[%emt 0:00:02]} Ne7 {[%emt 0:00:13]} 19. Nd4 {[%emt 0:00:10]} Qxe5 {[%emt 0:00:52]} 20. Nxe6 {[%emt 0:00:44]} Bxe6 {[%emt 0:00:15]} 21. Qxe6+ {[%emt 0:00:02]} Qxe6 {[%emt 0:00:06]} 22. Bxe6+ {[%emt 0:00:02]} Kc7 {[%emt 0:00:36]} 23. Bf4+ {[%emt 0:00:02]} Kc6 {[%emt 0:00:01]} 24. Bd6 {[%emt 0:00:38]} Nd5 {[%emt 0:00:49]} 25. c4 {[%emt 0:00:13]} Nc3 {[%emt 0:00:48]} 26. Bxf5 {[%emt 0:00:11]} Na6 {[%emt 0:00:26]} 27. Rfe1 {[%emt 0:01:40]} Nxc5 {[%emt 0:00:07]} 28. Be5 {[%emt 0:00:03]} N3a4 {[%emt 0:00:08]} 29. Bxg7 {[%emt 0:00:08]} Rhg8 {[%emt 0:00:14]} 30. Bxh6 {[%emt 0:00:08]} Nb2 {[%emt 0:00:41]} 31. Be3 {[%emt 0:00:18]} Rgf8 {[%emt 0:00:29]} 32. Bg4 {[%emt 0:00:20]} Ncd3 {[%emt 0:00:32]} 33. Re2 {[%emt 0:00:26]} Nxc4 {[%emt 0:00:05]} 34. Rc2 {[%emt 0:00:07]} b5 {[%emt 0:00:01]} 35. Bf3+ {[%emt 0:00:31]} Kc7 {[%emt 0:00:23]} 36. a4 {[%emt 0:00:17]} Nb4 {[%emt 0:00:23]} 37. Rc3 {[%emt 0:00:03]} a6 {[%emt 0:00:01]} 38. axb5 {[%emt 0:00:03]} axb5 {[%emt 0:00:03]} 39. Rb3 {[%emt 0:00:15]} Nc2 {[%emt 0:00:15]} 40. Ra7+ {[%emt 0:00:11]} Kc8 {[%emt 0:00:07]} 41. Rxb5 {[%emt 0:00:12]} N2xe3 {[%emt 0:00:09]} 42. Rc5+ {[%emt 0:00:07]} Kb8 {[%emt 0:00:06]} 43. Ra8# {[%emt 0:00:01]} 1-0